[Event "8th Svetozar Gligoric Cup 2022"]
[Site "Paracin"]
[Date "2022.05.31"]
[Round "1.12"]
[White "Dacic, Goran"]
[Black "Vratonjic, Slobo"]
[Result "0-1"]
[ECO "B40"]
[WhiteElo "1653"]
[BlackElo "2254"]
[Annotator "TA"]
[PlyCount "94"]
[EventDate "2022.05.31"]
[EventType "team-tourn"]
[EventCountry "SRB"]
[SourceTitle "playchess.com"]
[Source "ChessBase"]
[SourceQuality "1"]
[TimeControl "40/5400+30:900+30"]

{[%evp 14,93,2,1,0,8,19,0,0,0,0,0,4,0,-10,0,0,0,0,-6,0,-29,-20,-27,-33,-32,-33,-29,-27,-28,-33,-42,-35,-61,-60,-64,-63,-64,-57,-84,-50,-53,-50,-54,-50,-50,-50,-62,-63,-77,-81,-88,-70,-78,-71,-79,-64,-75,-65,-107,-120,-109,-116,-116,-107,-137,-145,-120,-104,-97,-26,-50,-51,-72,-83,-29986,-13,-29987,-29988,-29988,-29989,-29999]} 1. e4 {[%emt 0:00:06]} c5 {[%emt 0:00:07]} 2. Nf3 {[%emt 0:00:10][%cal Bg1f3,Bf3d4,Bd4f5][%mdl 32]} e6 {[%emt 0:00:08]} 3. d4 {[%emt 0:00:20]} cxd4 {[%emt 0:00:10]} 4. Nxd4 {[%emt 0:00:08]} Nf6 {[%emt 0:00:51]} 5. Nc3 {[%emt 0:00:25]} Bb4 {[%emt 0:00:08]} 6. Bd3 {[%emt 0:03:36]} e5 {[%emt 0:00:21]} 7. Nf5 {[%emt 0:02:13]} O-O {[%emt 0:00:10]} 8. O-O {[%emt 0:00:20] And now Nd5 would win.} Bxc3 {[%emt 0:00:21] B40: Sicilian: 2...e6, Unusual lines.} 9. bxc3 {[%emt 0:00:08] Strongly threatening Nd6.} d5 {[%emt 0:00:05]} 10. Ng3 {[%emt 0:02:13]} (10. Ba3 {feels hotter.} Bxf5 11. Bxf8 Bxe4 12. Ba3) 10... dxe4 {[%emt 0:04:04] The position is equal.} 11. Nxe4 {[%emt 0:00:24]} Nxe4 {[%emt 0:00:16]} 12. Bxe4 {[%emt 0:00:25]} Nd7 {[%emt 0:00:20] [#]} 13. Qd3 $146 {[%emt 0:03:38]} ({Predecessor:} 13. Ba3 Re8 14. Rb1 Nb6 15. Qf3 Qc7 16. Rb4 g6 17. g4 Rb8 18. Rbb1 Nc4 19. Bc1 {½-½ (56) Hoolt,S (2314)-Liu,Y (2089) Shenzhen 2011}) 13... Nf6 {[%emt 0:00:45]} (13... Nc5 {is more complex.} 14. Bxh7+ Kh8 15. Qe3 Kxh7 16. Qxc5 Re8) 14. Bg5 {[%emt 0:03:04]} Qxd3 {[%emt 0:01:50]} 15. Bxd3 {[%emt 0:00:38]} Be6 {[%emt 0:00:16]} 16. Rfe1 {[%emt 0:00:55] Inhibits e4.} Nd7 {[%emt 0:04:16]} 17. Be4 {[%emt 0:04:14]} Nc5 {[%emt 0:05:29]} 18. Be7 {[%emt 0:10:45] A strong pair of Bishops.} Rfc8 {[%emt 0:00:27]} 19. Bxc5 {[%emt 0:17:05]} Rxc5 {[%emt 0:00:28]} 20. Bxb7 {[%emt 0:00:10]} Rb8 {[%emt 0:00:23]} 21. Ba6 {[%emt 0:00:40]} Rxc3 {[%emt 0:10:45]} 22. Bd3 {[%emt 0:05:15]} Rc5 {[%emt 0:00:10]} 23. a4 {[%emt 0:01:34]} Ra5 {[%emt 0:03:27]} 24. h3 {[%emt 0:05:53]} g6 {[%emt 0:00:27]} 25. Ra3 {[%emt 0:04:20]} Rb4 {[%emt 0:01:29]} 26. Rea1 {[%emt 0:00:21]} Rd4 {[%emt 0:12:31]} 27. Bb5 {[%emt 0:07:54]} a6 {[%emt 0:03:10]} 28. c3 {[%emt 0:01:02]} Rd2 {[%emt 0:00:23]} 29. Bf1 {[%emt 0:00:25]} Rb2 {[%emt 0:00:54]} 30. Rd1 {[%emt 0:03:37]} Kf8 {[%emt 0:00:32]} 31. Rd8+ {[%emt 0:01:25]} Ke7 {[%emt 0:00:10]} 32. Rd1 {[%emt 0:00:15]} Bb3 {[%emt 0:12:52]} 33. Rda1 {[%emt 0:00:59]} Kd6 $36 {[%emt 0:01:19][%mdl 2048] Black is on the roll.} 34. Bd3 {[%emt 0:02:38]} Kc5 {[%emt 0:04:45]} 35. g4 {[%emt 0:05:11]} f6 {[%emt 0:03:04][%cal Bf7f6,Bf6f5][%mdl 32]} 36. Kg2 {[%emt 0:03:57]} Bd5+ {[%emt 0:06:15]} 37. Kg3 {[%emt 0:00:21]} Rd2 {[%emt 0:00:09]} 38. Bf1 {[%emt 0:01:44]} f5 {[%emt 0:00:15] Black is much more active.} 39. f4 {[%emt 0:02:31]} exf4+ {[%emt 0:03:14]} 40. Kxf4 {[%emt 0:00:00]} fxg4 {[%emt 0:00:00]} 41. hxg4 {[%emt 0:00:43]} Bc4 {[%emt 0:00:09]} (41... Rf2+ $17 42. Kg5 Be6) 42. Bxc4 {[%emt 0:07:57]} Kxc4 $11 {[%emt 0:39:35] KRR-KRR} 43. Rb1 g5+ {[%emt 0:00:00]} 44. Ke4 $2 {[%emt 0:00:26][%mdl 8192] [#]} (44. Kf3 $17) 44... Re2+ {[%emt 0:00:00]} 45. Kf3 {[%emt 0:00:56]} Rae5 {[%emt 0:00:00][%csl Ge2][%cal Re5e3] Black mates.} 46. Rb4+ {[%emt 0:00:25]} Kc5 {[%emt 0:00:00][%csl Ge2][%cal Re5e3]} 47. Rb7 {[%emt 0:02:17]} R5e3# {[%emt 0:00:00] Weighted Error Value: White=0.32/Black=0.06 (flawless)} 0-1

[Event "8th Svetozar Gligoric Cup 2022"]
[Site "Paracin"]
[Date "2022.06.01"]
[Round "2.1"]
[White "Maksimovic, Bojan"]
[Black "Markus, Robert"]
[Result "1/2-1/2"]
[ECO "A55"]
[WhiteElo "2445"]
[BlackElo "2613"]
[Annotator "TA"]
[PlyCount "68"]
[EventDate "2022.05.31"]
[EventType "team-tourn"]
[EventCountry "SRB"]
[SourceTitle "playchess.com"]
[Source "ChessBase"]
[SourceQuality "1"]
[TimeControl "40/5400+30:900+30"]

{[%evp 18,68,53,38,52,55,68,41,119,71,104,79,85,79,99,87,98,74,74,76,68,54,96,75,85,70,96,89,96,87,89,85,87,79,90,82,93,56,93,60,72,57,60,51,69,57,74,0,57,0,69,0,56]} 1. d4 {[%emt 0:00:06]} Nf6 {[%emt 0:00:09]} 2. c4 {[%emt 0:00:06]} d6 {[%emt 0:00:06]} 3. Nc3 {[%emt 0:00:07]} Nbd7 {[%emt 0:00:37]} 4. Nf3 {[%emt 0:00:39]} c6 {[%emt 0:00:23]} 5. e4 {[%emt 0:00:38]} e5 {[%emt 0:00:06]} 6. Be2 {[%emt 0:00:54]} Be7 {[%emt 0:00:07]} 7. O-O {[%emt 0:02:12]} O-O {[%emt 0:00:05]} 8. Re1 {[%emt 0:00:54]} Re8 {[%emt 0:02:40]} 9. Bf1 {[%emt 0:01:48]} Qc7 {[%emt 0:00:08]} 10. d5 {[%emt 0:07:03]} Nf8 {[%emt 0:07:57] A55: Old Indian Defence with Nf3 and e4.} 11. h3 {[%emt 0:03:23]} c5 {[%emt 0:07:50] [#]} 12. Nh4 $146 {[%emt 0:05:06][%cal Bf3h4,Bh4g2,Bg2e3][%mdl 32]} ({Predecessor:} 12. Be3 Ng6 13. a3 Bd7 14. b4 b6 15. Rb1 Rec8 16. Rb3 Qd8 17. Qd2 Be8 18. Reb1 {0-1 (52) Martic,Z (2390)-Goric,E (2368) Osijek 2010}) 12... g6 {[%emt 0:10:42]} ({Black should play} 12... Nxe4 $14 13. Rxe4 f5) 13. g3 {[%emt 0:01:51]} (13. Nf3 $142) 13... Kh8 {[%emt 0:03:38]} 14. Kh2 {[%emt 0:01:14]} Ng8 {[%emt 0:03:03]} 15. Ng2 {[%emt 0:00:11] White is more active.} Bd7 {[%emt 0:02:18]} 16. Bd2 {[%emt 0:21:16]} Qc8 {[%emt 0:11:22]} 17. Ne3 {[%emt 0:03:17]} h5 {[%emt 0:04:24]} 18. h4 {[%emt 0:07:08]} Nh7 {[%emt 0:02:18]} 19. Bd3 {[%emt 0:01:39]} Bf8 {[%emt 0:02:00]} 20. Qc2 {[%emt 0:03:57]} Bh6 {[%emt 0:06:56]} 21. Rf1 {[%emt 0:00:43]} Nhf6 {[%emt 0:03:52]} 22. f3 {[%emt 0:00:40]} Qc7 {[%emt 0:03:30]} 23. Rae1 {[%emt 0:01:01]} Rf8 {[%emt 0:02:19]} 24. Bc1 {[%emt 0:00:23]} Rae8 {[%emt 0:00:14]} 25. b3 {[%emt 0:00:14]} Qd8 {[%emt 0:01:51]} 26. Bb2 {[%emt 0:02:18]} Bg7 {[%emt 0:00:31]} 27. Ne2 {[%emt 0:01:10][%cal Bc3e2,Be2g1,Bg1h3][%mdl 32]} Bc8 {[%emt 0:01:10]} 28. Ng1 {[%emt 0:00:32]} Nh6 {[%emt 0:01:07]} 29. Qg2 {[%emt 0:02:01]} Nh7 {[%emt 0:00:54]} 30. Nh3 {[%emt 0:02:42]} b6 {[%emt 0:01:44]} 31. Bc1 {[%emt 0:02:30]} Ng8 {[%emt 0:01:53]} 32. Bb2 {[%emt 0:03:10]} Nh6 $1 {[%emt 0:00:18]} 33. Bc1 {[%emt 0:00:04]} Ng8 $1 {[%emt 0:00:05]} 34. Bb2 {[%emt 0:00:03]} Nh6 {[%emt 0:00:07] Weighted Error Value: White=0.20 (precise) /Black=0.12 (very precise)} 1/2-1/2

[Event "8th Svetozar Gligoric Cup 2022"]
[Site "Paracin"]
[Date "2022.06.01"]
[Round "2.2"]
[White "Kovacevic, Aleksandar"]
[Black "Tadic, Stefan"]
[Result "1-0"]
[ECO "B33"]
[WhiteElo "2503"]
[BlackElo "2358"]
[Annotator "TA"]
[PlyCount "91"]
[EventDate "2022.05.31"]
[EventType "team-tourn"]
[EventCountry "SRB"]
[SourceTitle "playchess.com"]
[Source "ChessBase"]
[SourceQuality "1"]
[TimeControl "40/5400+30:900+30"]

{[%evp 17,91,47,33,37,52,59,50,46,52,63,52,26,70,82,95,87,79,103,99,89,146,92,187,173,181,181,193,193,197,185,161,162,287,278,312,227,334,333,321,231,220,216,215,177,499,498,470,484,545,534,539,503,725,724,713,710,710,664,1110,1069,1006,988,1472,1462,8808,4132,29961,29962,29959,29956,29965,29970,29963,29968,6402,6402]} 1. e4 {[%emt 0:00:13]} c5 {[%emt 0:00:15]} 2. Nf3 {[%emt 0:00:10][%cal Bg1f3,Bf3d4,Bd4b5,Bb5a3,Ba3c4][%mdl 32]} Nc6 {[%emt 0:00:28]} 3. d4 {[%emt 0:01:13]} cxd4 {[%emt 0:00:06]} 4. Nxd4 {[%emt 0:00:03]} Nf6 {[%emt 0:00:49]} 5. Nc3 {[%emt 0:00:13]} e6 {[%emt 0:00:28]} 6. Ndb5 {[%emt 0:01:05]} d6 {[%emt 0:00:19]} 7. Bf4 {[%emt 0:00:15]} e5 {[%emt 0:00:05]} 8. Bg5 {[%emt 0:00:07]} a6 {[%emt 0:00:19]} 9. Na3 {[%emt 0:00:08]} Be6 {[%emt 0:00:08]} 10. Nc4 {[%emt 0:00:35] B33: Sicilian: Pelikan and Sveshnikov Variations.} Rb8 {[%emt 0:00:42] now scores much better than the old 10...Rc8.} 11. g3 {[%emt 0:07:34]} Nd4 {[%emt 0:01:11]} 12. Ne3 {[%emt 0:00:23] White is slightly better.} Be7 {[%emt 0:01:52][%cal Of6e4]} 13. Bxf6 {[%emt 0:00:41]} Bxf6 {[%emt 0:00:09]} 14. h4 {[%emt 0:01:31][%cal Bh2h4,Bh4h5][%mdl 32] [#] Inhibits Bg5.} g6 $146 {[%emt 0:11:31]} ({Predecessor:} 14... Rc8 15. Bh3 O-O 16. Kf1 Bxh3+ 17. Rxh3 Qd7 18. Kg2 Bd8 19. Ncd5 f5 20. c3 f4 21. gxf4 exf4 22. Qxd4 fxe3 23. Nxe3 {½-½ (89) Wagner,D (2581)-Lintchevski,D (2559) Chess.com INT 2020}) 15. Ncd5 {[%emt 0:01:18] White leaves nothing to chance now.} Bg7 {[%emt 0:00:22]} 16. c3 {[%emt 0:01:01]} Nc6 {[%emt 0:00:17]} 17. h5 {[%emt 0:01:55] White is more active.} O-O {[%emt 0:08:49]} 18. a4 {[%emt 0:05:13]} Qg5 {[%emt 0:15:40]} ({Black should try} 18... Kh8) 19. a5 {[%emt 0:05:43]} (19. Nc7 $142) 19... f5 {[%emt 0:18:22]} (19... Bh6 $16) 20. Nc7 $1 $18 {[%emt 0:19:33] Pair of Knights!} Bf7 {[%emt 0:07:13]} 21. hxg6 {[%emt 0:00:42]} hxg6 {[%emt 0:00:08] [#]} 22. exf5 {[%emt 0:06:21]} (22. Qxd6 Rfd8 23. Qc5 Rbc8 $11) 22... gxf5 {[%emt 0:00:08]} 23. Bc4 {[%emt 0:00:19]} ({Inferior is} 23. Qxd6 Rfd8 24. Qc5 Rbc8 $17) 23... Qg6 {[%emt 0:05:31]} 24. Ra4 {[%emt 0:07:29]} Rbc8 {[%emt 0:14:29]} (24... Bxc4 {was called for.} 25. Rxc4 Rf7) 25. Ncd5 {[%emt 0:00:56][%cal Bc7d5,Bd5b6,Bb6c4][%mdl 32] Hoping for g4.} Qg5 {[%emt 0:00:07]} 26. Nb6 {[%emt 0:04:57]} Rcd8 {[%emt 0:01:52]} (26... Rce8 {is a better defense.} 27. Nd7 (27. Qxd6 f4 $11) 27... d5) 27. Rh5 {[%emt 0:01:13]} Qg6 {[%emt 0:02:21][%cal Od6d5]} 28. Rxf5 {[%emt 0:01:19] Chess con chili.} Bxc4 {[%emt 0:00:05]} 29. Rxf8+ {[%emt 0:00:15]} Rxf8 {[%emt 0:00:21]} 30. Nbxc4 {[%emt 0:01:19]} Nd4 $2 {[%emt 0:02:50]} (30... Qf7 {is a better chance.} 31. Qd5 Qxd5 32. Nxd5 Kf7) 31. cxd4 {[%emt 0:05:40]} exd4 {[%emt 0:00:01]} 32. Ng2 {[%emt 0:01:32]} Bh6 {[%emt 0:05:33]} 33. Qxd4 {[%emt 0:04:35]} Qb1+ {[%emt 0:01:01] [#]} 34. Qd1 $1 {[%emt 0:00:24]} Qf5 {[%emt 0:01:45][%csl Gf8][%cal Rf5f2]} 35. Nf4 {[%emt 0:07:16]} Bxf4 {[%emt 0:00:18]} 36. gxf4 {[%emt 0:00:08]} Qxf4 {[%emt 0:00:37]} 37. Qd5+ {[%emt 0:04:52]} Rf7 {[%emt 0:00:05]} 38. Nxd6 {[%emt 0:01:22]} Qc1+ {[%emt 0:00:20]} 39. Qd1 {[%emt 0:00:32]} Re7+ {[%emt 0:00:10]} 40. Re4 {[%emt 0:00:00]} Rxe4+ {[%emt 0:00:00]} 41. Nxe4 {[%emt 0:00:33]} Qxb2 {[%emt 0:00:19]} 42. Qd5+ {[%emt 0:00:35]} Kf8 {[%emt 0:03:36]} 43. Nd6 {[%emt 0:05:06][%csl Gd6][%cal Rd5f7]} Qc1+ {[%emt 0:00:02]} 44. Ke2 {[%emt 0:00:06][%csl Gd6][%cal Rd5f7]} Ke7 {[%emt 0:00:02]} 45. Nc4 {[%emt 0:02:18]} Qc2+ {[%emt 0:00:11]} 46. Kf3 {[%emt 0:00:32] Weighted Error Value: White=0.10 (very precise) /Black=0.80} 1-0

[Event "8th Svetozar Gligoric Cup 2022"]
[Site "Paracin"]
[Date "2022.06.01"]
[Round "2.3"]
[White "Ivanovic, Marko"]
[Black "Brenjo, Slavisa"]
[Result "0-1"]
[ECO "C56"]
[WhiteElo "2294"]
[BlackElo "2402"]
[Annotator "TA"]
[PlyCount "56"]
[EventDate "2022.05.31"]
[EventType "team-tourn"]
[EventCountry "SRB"]
[SourceTitle "playchess.com"]
[Source "ChessBase"]
[SourceQuality "1"]
[TimeControl "40/5400+30:900+30"]

{[%evp 11,56,-15,-7,-22,-7,-41,-19,-3,-21,-6,-31,-47,-25,-160,-141,-232,-225,-357,-337,-333,-350,-750,-633,-864,-774,-1063,-1063,-1062,-1061,-1054,-1053,-1013,-684,-1029,-1020,-1002,-981,-908,-917,-826,-916,-903,-892,-882,-895,-829,-804]} 1. e4 {[%emt 0:09:50]} e5 {[%emt 0:00:10]} 2. Nf3 {[%emt 0:00:16]} Nc6 {[%emt 0:00:17]} 3. Bc4 {[%emt 0:00:25]} Nf6 {[%emt 0:01:27]} 4. d4 {[%emt 0:01:40]} exd4 {[%emt 0:01:04]} 5. e5 {[%emt 0:00:10]} Ne4 {[%emt 0:03:55]} 6. O-O {[%emt 0:00:13]} d5 {[%emt 0:05:28]} 7. Bb5 {[%emt 0:00:07] C56: Two Knights: 4 d4 exd4 5 0-0 Nxe4.} Bg4 {[%emt 0:05:12]} 8. Qxd4 {[%emt 0:04:57]} Bc5 {[%emt 0:13:00]} (8... Qd7 $5 {[%cal Rg4f3]} 9. Nbd2 Nxd4 10. Bxd7+ Bxd7 11. Nxd4 Nxd2 12. Bxd2 c5 $15) 9. Qd3 {[%emt 0:00:12] The position is equal.} O-O {[%emt 0:02:33]} 10. Bxc6 {[%emt 0:02:03]} bxc6 {[%emt 0:04:14]} 11. Nd4 {[%emt 0:08:57]} Qe8 {[%emt 0:11:17] [#]} 12. f3 $146 {[%emt 0:10:18] White is now going downhill.} (12. Nc3 $11) ({Predecessor:} 12. Nc3 Qxe5 13. Nxc6 Nxf2 14. Qxd5 Ne4+ 15. Kh1 Qxd5 16. Nxd5 Rae8 17. b4 Nf2+ 18. Kg1 Nh3+ 19. Kh1 {½-½ (24) Cerne,P (1830)-Kapustin,A (1790) ICCF email 2018}) 12... Qxe5 $17 {[%emt 0:01:50] Black is more active.} 13. c3 {[%emt 0:04:51]} (13. Be3 $17 Nf6 14. Bf2 (14. fxg4 $2 Nxg4 15. Bf4 Qxd4+ 16. Qxd4 Bxd4+ 17. Kh1 Bxb2 $19)) 13... Bd6 $19 {[%emt 0:04:07][%csl Gd6][%cal Re5h2]} 14. g3 {[%emt 0:14:55] [#]} (14. f4 {is the only way for White.} Qh5 15. Nd2) 14... Nxg3 $1 {[%emt 0:25:16][%mdl 512]} 15. fxg4 {[%emt 0:01:04]} Nxf1 {[%emt 0:00:08] The board is on fire.} 16. Kxf1 $2 {[%emt 0:00:08]} (16. Nf3 Qe6 17. Qxf1) 16... Qxh2 {[%emt 0:00:16] Black is clearly winning.} 17. Be3 {[%emt 0:17:02]} Rae8 {[%emt 0:01:19]} 18. Bg1 {[%emt 0:16:44] [#]} Re1+ $3 {[%emt 0:10:51][%mdl 512]} 19. Kxe1 {[%emt 0:01:06]} Qxg1+ {[%emt 0:00:07]} 20. Kd2 {[%emt 0:00:33]} Bf4+ {[%emt 0:00:11]} 21. Kc2 {[%emt 0:00:50]} Qc1+ {[%emt 0:00:17]} 22. Kb3 {[%emt 0:00:03]} c5 {[%emt 0:00:41] Hoping for ...c4+.} 23. Qc2 {[%emt 0:04:31]} Rb8+ {[%emt 0:00:40][%mdl 64] Skewer} 24. Ka4 {[%emt 0:00:59]} cxd4 {[%emt 0:00:53]} 25. Qxc1 {[%emt 0:00:05]} Bxc1 {[%emt 0:00:07]} 26. Na3 {[%emt 0:00:01]} Bxb2 {[%emt 0:00:12]} 27. Rd1 {[%emt 0:00:12]} Bxc3 {[%emt 0:01:31] ...Rb4+ is the strong threat.} 28. Nb5 {[%emt 0:00:05]} c6 {[%emt 0:00:56] Weighted Error Value: White=0.81/Black=0.10 (very precise)} 0-1

[Event "8th Svetozar Gligoric Cup 2022"]
[Site "Paracin"]
[Date "2022.06.01"]
[Round "2.4"]
[White "Popovic, Milan S"]
[Black "Brankovic, Vladislav"]
[Result "1/2-1/2"]
[ECO "C10"]
[WhiteElo "2383"]
[BlackElo "2114"]
[Annotator "TA"]
[PlyCount "39"]
[EventDate "2022.05.31"]
[EventType "team-tourn"]
[EventCountry "SRB"]
[SourceTitle "playchess.com"]
[Source "ChessBase"]
[SourceQuality "1"]
[TimeControl "40/5400+30:900+30"]

{[%evp 18,39,62,18,95,91,112,120,117,118,98,52,70,50,50,46,56,0,19,-77,20,-72,-76,-81]} 1. e4 {[%emt 0:00:02]} e6 {[%emt 0:04:33]} 2. d4 {[%emt 0:00:10]} d5 {[%emt 0:00:04]} 3. Nc3 {[%emt 0:00:04]} dxe4 {[%emt 0:00:22]} 4. Nxe4 {[%emt 0:00:05]} Nf6 {[%emt 0:00:45]} 5. Nxf6+ {[%emt 0:00:08]} Qxf6 {[%emt 0:00:24]} 6. Nf3 {[%emt 0:00:06]} h6 {[%emt 0:00:08]} 7. Bd3 {[%emt 0:01:29]} Bd6 {[%emt 0:01:33]} 8. O-O {[%emt 0:03:16]} Nc6 {[%emt 0:02:54]} 9. c3 {[%emt 0:01:32]} O-O {[%emt 0:01:45]} 10. Qe2 {[%emt 0:12:15]} Ne7 {[%emt 0:09:29] C10: French with 3 Nc3: Unusual Black 3rd moves and 3...dxe4.} (10... e5 $1 $11 {keeps the balance.}) 11. Ne5 $16 {[%emt 0:20:23] [#] And now Ng4 would win.} ({Don't play} 11. Qe4 Qg6 $14) 11... Nf5 $146 {[%emt 0:16:48]} ({Predecessor:} 11... Nd5 12. Qe4 g6 13. Bxh6 Re8 14. f4 Ne7 15. Rf3 Nf5 16. Bg5 Qg7 17. Ng4 Be7 18. Bxe7 Nxe7 {1-0 (64) Komarkova,M (2024)-Kapoun,V (1786) Czech Republic 2015}) 12. g4 {[%emt 0:16:14]} Nh4 {[%emt 0:07:26] White is better.} 13. Qe4 {[%emt 0:23:57][%csl Gd3][%cal Re4h7]} Ng6 {[%emt 0:19:04]} 14. f4 {[%emt 0:04:17] 0x0.00166a4466b3dp-1022s more active pieces. The black rooks are badly placed.} (14. Nxg6 $16 {[%cal Og6e7] Intending Ne7+! and mate.} Qxg6 15. Qxg6 fxg6 16. Bxg6) 14... Qh4 {[%emt 0:07:20]} 15. Bd2 {[%emt 0:06:36] Threatens to win with Be1.} Bxe5 {[%emt 0:01:58]} 16. fxe5 {[%emt 0:00:11]} Bd7 {[%emt 0:07:27][%cal Oc7c5]} 17. Qg2 {[%emt 0:05:09]} (17. Rf2 $14) 17... Bc6 {[%emt 0:01:04]} 18. Qg3 {[%emt 0:00:03]} (18. Qe2 $11 {remains equal.}) 18... Qxg3+ $17 {[%emt 0:00:51]} 19. hxg3 {[%emt 0:00:01] [#]} Nxe5 $1 {[%emt 0:00:27]} 20. Be2 {[%emt 0:02:43] Weighted Error Value: White=0.39/Black=0.15 (very precise)} 1/2-1/2